Cogmind - Beta 14 @@@ ROGUE MODE // 2025.03.18 @ 19:55:58 Player: Pepsi Result: Destroyed by D-53 Grenadier with Mini Grenade Launcher Performance ------------- Evolutions (1) 500 Regions Visited (3) 600 Robots Destroyed (56) 280 Value Destroyed (1234) 1234 Prototype IDs (6) 120 Alien Tech Used (0) 0 Bonus (118) 118 TOTAL SCORE: 2852 Bonus ------- High Alert Combat Kills 118 Cogmind --------- Core Integrity 0/400 Matter 275/300 Energy 240/240 System Corruption 0% Temperature Cool (0) Movement Walking (260) Ox2 Location -9/Mines Parts ------- > --- POWER (1) -------- Nuclear Core > --- PROPULSION (2) --- Aluminum Leg > --- UTILITY (4) ------ Heat Sink Medium Storage Unit Improved Targeting Computer > --- WEAPON (2) ------- Heavy Particle Cannon > --- INVENTORY (10) --- Nuclear Core Aluminum Leg Aluminum Leg Disposable Heat Sink Improved Targeting Computer Heavy Particle Cannon Heavy Particle Cannon Heavy Particle Cannon Improved Assault Rifle Grenade Launcher Peak State ------------ > --- POWER ------------ Nuclear Core > --- PROPULSION ------- Aluminum Leg Improved Aluminum Leg > --- UTILITY ---------- Heat Sink Medium Storage Unit Improved Targeting Computer Improved Targeting Computer > --- WEAPON ----------- Heavy Particle Cannon Heavy Particle Cannon > --- INVENTORY -------- Nuclear Core Aluminum Leg Aluminum Leg Disposable Heat Sink Improved Targeting Computer Heavy Particle Cannon Heavy Particle Cannon Improved Assault Rifle Grenade Launcher Grenade Launcher [Rating: 20] Favorites ----------- Power Ion Engine Engine Ion Engine Power Core Nuclear Core Propulsion Aluminum Leg Leg Aluminum Leg Wheel Wheel Utility Heat Sink Device Heat Sink Storage Medium Storage Unit Processor Transport Network Coupler Weapon Heavy Particle Cannon Energy Gun Medium Laser Energy Cannon Heavy Particle Cannon Ballistic Gun Improved Assault Rifle Launcher Grenade Launcher Build | -11 -10 -9 -9 ------- Run | Yrd Mat Mat Min Slots Evolved 2 | . . 2 . Power . | . . . . Propulsion . | . . . . Utility 2 | . . 2 . Weapon . | . . . . Parts Attached 43 | 7 8 27 1 Power 4 | 2 . 2 . Engine 3 | 2 . 1 . Core 1 | . . 1 . Reactor . | . . . . Propulsion 10 | 2 2 6 . Treads . | . . . . Leg 6 | . . 6 . Wheel 4 | 2 2 . . Hover . | . . . . Flight . | . . . . Utility 9 | 1 2 6 . Device 3 | . 1 2 . Storage 2 | 1 . 1 . Processor 4 | . 1 3 . Hackware . | . . . . Protection . | . . . . Artifact . | . . . . Weapon 20 | 2 4 13 1 Energy Gun 5 | 2 2 1 . Energy Cannon 9 | . 2 7 . Ballistic Gun 1 | . . 1 . Ballistic Cannon . | . . . . Launcher 5 | . . 4 1 Special Weapon . | . . . . Impact Weapon . | . . . . Slashing Weapon . | . . . . Piercing Weapon . | . . . . Special Melee Weapon . | . . . . Unidentified Prototypes 2 | . . 2 . Parts Lost 7 | . . 4 3 Power 1 | . . 1 . Propulsion 2 | . . 1 1 Utility 2 | . . 1 1 Weapon 2 | . . 1 1 Highest Loss Streak 3 | . . 1 3 To Critical Strikes . | . . . . Average Slot Usage (%) 97 | . 93 98 100 Engine 6 | . 14 4 . Core 5 | . . 6 11 Leg 15 | . . 20 22 Wheel 7 | . 28 1 . Device 11 | . 7 12 11 Storage 11 | . 14 11 11 Processor 15 | . 1 19 22 Energy Gun 2 | . 13 . . Energy Cannon 18 | . 14 19 12 Ballistic Gun 1 | . . 1 . Peak Build Rating 20 | 6 8 20 20 Average Rating 12 | 4 6 14 18 On Entrance 8 | . 6 7 20 Naked Turns . | . . . . Heaviest Build 30 | 14 17 30 30 Greatest Support 23 | 20 20 23 23 Greatest Overweight (x) 2 | . . 2 2 Average Overweight (x) . | . . . 1 Largest Inventory Capacity 10 | 8 8 10 10 Average Capacity 9 | 6 8 9 10 Most Carried 10 | 4 8 10 10 Average Carried 8 | 2 6 9 10 Final Capacity 10 | 8 8 10 10 Final Carried 10 | 4 8 10 10 Class Distribution -------------------- 56% | Scavenger-Mutant 43% | Mutant Dominant Class ---------------- Mutant | -10/Materials Scavenger-Mutant | -9/Materials Mutant | -9/Mines Resources | -11 -10 -9 -9 ----------- Run | Yrd Mat Mat Min Matter Collected 707 | 216 132 359 . Remotely . | . . . . Salvage Created 2075 | . 453 1622 . Parts 120 | . 25 95 . Haulers Intercepted 6 | . 1 5 . Recyclers Shooed 1 | . . 1 . Parts Field Recycled . | . . . . Retrieved Matter . | . . . . Parts Self-Destructed . | . . . . Prevented . | . . . . Kills | -11 -10 -9 -9 ------- Run | Yrd Mat Mat Min Combat Hostiles Destroyed 37 | . 8 29 . Guns 4 | . 3 1 . Cannons 19 | . 4 15 . AOE 13 | . 1 12 . Classes Destroyed 7 | . 4 3 . Worker 3 | . 2 1 . Hauler 6 | . 1 5 . Recycler 6 | . . 6 . Watcher 4 | . 1 3 . Swarmer 11 | . . 11 . Grunt 20 | . 8 12 . Sentry 6 | . . 6 . Best Kill Streak 10 | . 4 10 . Combat Bots Only 9 | . 3 9 . Max Kills in Single Turn 3 | . 2 3 . Gunslinging . | . . . . Exploded 2 | . 1 2 . Melee . | . . . . Uniques/NPCs Destroyed . | . . . . Combat | -11 -10 -9 -9 -------- Run | Yrd Mat Mat Min Hostile Shots Fired 135 | . 17 109 9 Missed 38 | . 6 32 . Damage Taken 1426 | . 171 919 336 Core 438 | . 35 278 125 Absorbed by Shields . | . . . . Regen/Repaired (Parts) 34 | . . 34 . Core Remaining (%) 93 | 100 86 . . Volleys Fired 126 | . 35 89 2 Largest 2 | . 2 2 2 Hottest 150 | . 120 150 105 Shots Fired 207 | . 62 142 3 Gun 51 | . 48 3 . Cannon 144 | . 14 129 1 Launcher 12 | . . 10 2 Special . | . . . . Kinetic 3 | . . 3 . Thermal 175 | . 45 129 1 Explosive 12 | . . 10 2 Electromagnetic 17 | . 17 . . Robot Hit Streak 10 | . 9 10 1 Robot Miss Streak 4 | . 4 4 1 Penetration Max . | . . . . Secondary Targets . | . . . . Shots Hit Robots 121 | . 37 83 1 Core Hits 73 | . 19 53 1 Critical Kills 1 | . . 1 . Critical Parts Destroyed . | . . . . Critical Strikes 6 | . 5 1 . Burn 5 | . 5 . . Meltdown 1 | . . 1 . Melee Attacks . | . . . . Impact . | . . . . Slashing . | . . . . Piercing . | . . . . Sneak Attacks . | . . . . Combat Hostiles . | . . . . Follow-up Attacks . | . . . . Damage Inflicted 3163 | . 713 2434 16 Guns 432 | . 417 15 . Cannons 1750 | . 139 1611 . Explosions 960 | . 136 808 16 Melee . | . . . . Ramming 21 | . 21 . . Kinetic 15 | . . 15 . Thermal 2124 | . 513 1611 . Explosive 824 | . . 808 16 Electromagnetic 179 | . 179 . . Impact . | . . . . Slashing . | . . . . Piercing . | . . . . Highest Corruption . | . . . . Average Corruption . | . . . . Corruption Purged . | . . . . Corruption Blocked . | . . . . Overload Shots . | . . . . Overflow Damage 49 | . 23 26 . Projectiles . | . . . . Explosions 49 | . 23 26 . Melee . | . . . . Knockbacks . | . . . . Impact . | . . . . Kinetic . | . . . . Secondary . | . . . . Self-Inflicted Damage 52 | . 44 8 . Shots 2 | . 1 1 . Rammed 2 | . 2 . . Targets Rammed 2 | . 2 . . Kicked . | . . . . Crushed . | . . . . Highest Temperature 267 | . 267 228 12 Average Temperature 67 | . 86 53 8 Received Heat Transfer 381 | . 69 312 . Siege Activations . | . . . . Robots Corrupted . | . . . . Combat Hostiles . | . . . . Parts Fried 1 | . 1 . . Impact Corruptions . | . . . . Robots Melted 1 | . . 1 . Combat Hostiles 1 | . . 1 . Parts Melted 9 | . 3 6 . Heat Transferred 4405 | . 1519 2886 . Parts Sabotaged . | . . . . Parts Stolen . | . . . . Parts Stripped . | . . . . Power Chain Reactions 2 | . 2 . . Alert | -11 -10 -9 -9 ------- Run | Yrd Mat Mat Min Peak Influence 694 | . 221 694 225 Initial 216 | . . 69 216 Average 403 | . 125 505 218 Maximum Alert Level 2 | . 1 2 1 Low Security (%) 24 | 100 77 6 4 Level 1 15 | . 22 11 95 Level 2 59 | . . 81 . Level 3 . | . . . . Level 4 . | . . . . Level 5 . | . . . . High Security . | . . . . Max Security . | . . . . Squads Dispatched 8 | . 5 3 . Investigation 3 | . 2 1 . Extermination . | . . . . Reinforcement 5 | . 3 2 . Assault . | . . . . Garrison . | . . . . Intercept . | . . . . Searches Triggered . | . . . . Construction Impeded 1 | . . 1 . Haulers Reinforced . | . . . . Active Scanning Responses . | . . . . Cargo Convoy Interrupts . | . . . . Stealth | -11 -10 -9 -9 --------- Run | Yrd Mat Mat Min Distress Signals 2 | . . 2 . Communications Jammed . | . . . . Distress Signals . | . . . . Times Spotted 53 | . 15 36 2 Peak Tracking Total 6 | . 6 4 2 Tactical Retreats 2 | . . 2 . Traps | -11 -10 -9 -9 ------- Run | Yrd Mat Mat Min Traps Triggered 1 | . . 1 . Indirectly . | . . . . Trap Hack Attempts . | . . . . Triggered . | . . . . Disarmed . | . . . . Reprogrammed . | . . . . Reused . | . . . . Traps Extracted . | . . . . Installed . | . . . . Triggered . | . . . . Machines | -11 -10 -9 -9 ---------- Run | Yrd Mat Mat Min Machines Disabled 2 | . . 2 . Max in Single Turn 1 | . . 1 . Machines Repaired . | . . . . Machines Dismantled . | . . . . Machines Sabotaged . | . . . . Overloaded Fab Kills . | . . . . Hacking | -11 -10 -9 -9 --------- Run | Yrd Mat Mat Min Machines Accessed 9 | . 4 5 . Terminals 7 | . 3 4 . Fabricators . | . . . . Repair Stations 2 | . 1 1 . Recycling Units . | . . . . Scanalyzers . | . . . . Garrison Access . | . . . . Total Hacks 23 | . 12 11 . Successful 8 | . 3 5 . Failed 15 | . 9 6 . Catastrophic 2 | . 1 1 . Database Lockouts . | . . . . Manual . | . . . . Terminals 14 | . 9 5 . Fabricators . | . . . . Repair Stations 9 | . 3 6 . Recycling Units . | . . . . Scanalyzers . | . . . . Garrison Access . | . . . . Terminal Hacks 4 | . 2 2 . Robot Analysis 1 | . . 1 . Prototype ID Bank 2 | . 2 . . Hauler Manifests 1 | . . 1 . Fabricator Hacks . | . . . . Repair Station Hacks 4 | . 1 3 . Scan Component 3 | . 1 2 . Repair 1 | . . 1 . Recycling Unit Hacks . | . . . . Scanalyzer . | . . . . Garrison Access Hacks . | . . . . Unauthorized Hacks . | . . . . Terminals . | . . . . Fabricators . | . . . . Repair Stations . | . . . . Recycling Units . | . . . . Scanalyzers . | . . . . Garrison Access . | . . . . Data Cores Recovered . | . . . . Used . | . . . . Hacking Detections 8 | . 3 5 . Full Trace Events 3 | . 3 . . Feedback Events . | . . . . Feedback Blocked . | . . . . Robot Schematics Acquired . | . . . . Robots Built . | . . . . Authchips . | . . . . Time . | . . . . Total Robot Build Rating . | . . . . Part Schematics Acquired . | . . . . Parts Built . | . . . . Authchips . | . . . . Time . | . . . . Total Part Build Rating . | . . . . Parts Repaired 1 | . . 1 . Time 36 | . . 36 . Parts Recycled . | . . . . Recycled Matter . | . . . . Retrieved Matter . | . . . . Retrieved Components . | . . . . Parts Scanalyzed . | . . . . Part Schematics Acquired . | . . . . Parts Damaged . | . . . . Bothacking | -11 -10 -9 -9 ------------ Run | Yrd Mat Mat Min Used RIF Installer . | . . . . Robots Hacked . | . . . . Non-combat . | . . . . Combat . | . . . . Robot Hacks Applied . | . . . . Relay Couplers Released . | . . . . Fabnet Peak Effective % . | . . . . Robots Rewired . | . . . . Allies Hacked . | . . . . Hacks Repelled . | . . . . Allies | -11 -10 -9 -9 -------- Run | Yrd Mat Mat Min Total Allies . | . . . . Largest Group . | . . . . Highest-Rated Group . | . . . . Highest-Rated Ally . | . . . . Total Orders . | . . . . Ally Attacks . | . . . . Total Damage . | . . . . Kills . | . . . . Allies Corrupted . | . . . . Allies Melted . | . . . . Intel | -11 -10 -9 -9 ------- Run | Yrd Mat Mat Min Robot Analysis Total 1 | . . 1 . Derelict Logs Recovered . | . . . . Drone Launches . | . . . . Drone Recoveries . | . . . . Exploration | -11 -10 -9 -9 ------------- Run | Yrd Mat Mat Min Turns Passed 2808 | 59 623 2057 69 Spaces Moved 1639 | 56 602 950 31 Core 1 | 1 . . . Treads . | . . . . Legs 861 | . . 830 31 Wheels 777 | 55 602 120 . Hover . | . . . . Flight . | . . . . Fastest Speed 50 | 50 80 80 190 Average Speed 137 | 79 80 174 192 Slowest Speed 260 | 80 80 190 260 Overloaded Moves . | . . . . Propulsion Burnouts . | . . . . Robots Hopped . | . . . . Cave-ins Triggered . | . . . . Exploration Rate (%) 32 | 4 57 59 8 Regions Visited 3 Branch Regions 1 Pre-discovered Areas . | . . . . Known Exits Taken . | . . . . Unknown Exits Taken 3 | 1 1 1 . Scrap Searched . | . . . . Spaces Dug 26 | . . 18 8 Terrain Destroyed 93 | . 10 73 10 Melee . | . . . . Projectile 13 | . . 12 1 AOE 80 | . 10 61 9 Terrain Rammed . | . . . . Walls Destroyed . | . . . . Machines Disabled . | . . . . Actions | -11 -10 -9 -9 --------- Run | Yrd Mat Mat Min Total 1994 | 66 683 1207 38 Wait 133 | . 19 110 4 Move 1636 | 55 601 949 31 Hop . | . . . . Pick Up 24 | 4 8 12 . Fast Attach 18 | 6 4 8 . Attach 5 | . . 5 . Detach 6 | . 2 4 . Swap 20 | 1 4 14 1 Drop 24 | . 8 16 . Fire 126 | . 35 89 2 Melee . | . . . . Ram 2 | . 2 . . Kick . | . . . . Crush . | . . . . Escape Stasis . | . . . . Rewire . | . . . . Trap . | . . . . Miscellaneous . | . . . . Route ------- -11/Scrapyard -10/Materials (discovered 3 exits: *Mat / [*Min x2]) -9/Materials (discovered 3 exits: [*Mat] / [*Min] / [*Sto]) -9/Mines History --------- Turn | Location | Event 38 | -11/Scrapyard | Discovered new exit (range 13) 60 | -11/Scrapyard | Entered Materials 199 | -10/Materials | Discovered new exit (range 12) 200 | -10/Materials | Discovered new exit (range 15) 329 | -10/Materials | Build established: Mutant 329 | -10/Materials | Discovered new exit (range 18) 683 | -10/Materials | Entered another Materials area 683 | -9/Materials | Evolved 2 slots: Utility x2 824 | -9/Materials | Discovered new exit (range 8) 962 | -9/Materials | Discovered new exit (range 13) 1182 | -9/Materials | Core integrity fell below 50% 1220 | -9/Materials | Destroyed 9 combat bots 1445 | -9/Materials | Repaired Broken Grenade Launcher 1536 | -9/Materials | Build established: Scavenger-Mutant 1816 | -9/Materials | Discovered new exit (range 12) 2740 | -9/Materials | Entered Mines 2741 | -9/Mines | Assembled infested the area 2787 | -9/Mines | Met a Derelict bent on vengeance 2806 | -9/Mines | Core integrity fell below 20% 2809 | -9/Mines | Destroyed by D-53 Grenadier with Mini Grenade Launcher Last Messages --------------- 02580_ Connecting with Terminal... 02582_ K-01 Serf collects debris. 02615_ Y-45 Defender suffers critical hit (Meltdown). 02615_ Heat Sink melted. 02615_ Lgt. Treads melted. 02652_ K-01 Serf cleans the Terminal. 02673_ Discarded Transport Network Coupler. 02676_ Acquired Imp. Targeting Computer. 02679_ Dropped Heat Sink. 02682_ Acquired Disposable Heat Sink. LOCATION=UNKNOWN GOAL=ESCAPE 02741_ ALERT: Infestation in the mines, dispatching Demolisher response squad. 02805_ The unstable cave ceiling collapses. 02805_ Imp. Targeting Computer destroyed. 02806_ The unstable cave ceiling collapses. 02806_ Imp. Aluminum Leg destroyed. 02806_ Grenade Launcher destroyed. 02808_ The unstable cave ceiling collapses. Map ----- +----------------------------------------------------+ | ?????????????????????????????????????????????????? | | ?????????????????????????????????????????????????? | | ?????????????????????????????????????????????????? | | ?????????????????????????????????????????????????? | | ?????????????????????????????????????????????????? | | ?????????????????????????????????????????????????? | | ?????????????????????????????????????????????????? | | ?????????????????????????????????????????????????? | | ?????????????????????????????????????????????????? | | ??????????????????????????????? #????????????????? | | ??????????????????????????????" #????????????????? | | ??????????????????????????????%"##???????????????? | | ????????????????? ????##????? ;#???????????????? | | ???????????????? ##### ##### ##??????????????? | | ??????????????? # ###????????????? | | ??????????????? ?????????????? | | ???????????????? # #?????????????? | | ????????????????? % d #?????????????? | | ??????????????????# ! d #?????????????? | | ???????????????????# #?????????????? | | ???????????????????# #?????????????? | | ??????????????????### #?????????????? | | ?????????????????## ## #?????????????? | | ????????????????## #????????????????? | | ????????????????# ##???????????????? | | ????????????????# @ #???????????????? | | ????????????????## ##???????????????? | | ?????????????????## ##????????????????? | | ??????????????????## ##?????????????????? | | ???????????????????# # ###??????????????????? | | ???????????????????##########????????????????????? | | ?????????????????????????????????????????????????? | | ?????????????????????????????????????????????????? | | ?????????????????????????????????????????????????? | | ?????????????????????????????????????????????????? | | ?????????????????????????????????????????????????? | | | | | | | | | | | | | | | | | | | | | | | | | | | | | +----------------------------------------------------+ Best States ------------- Heat Dissipation 38 Energy Generation 14 Energy Capacity 250 Matter Stores 300 Matter Capacity 300 Sight Range 18 Robot Scan Range 14 Terrain Scan Density 10 Evasion (%) 50 Targeting Accuracy 12 Item Schematics ----------------- None Robot Schematics ------------------ None Fabricated ------------ Nothing Alien Tech Used ----------------- None Achievements -------------- None Challenges ------------ None Game ------ Seed AerolevCoordinationBuckler Manual? 0 Play Time 00:33:24 Cumulative 12.2 hours Start 2025.03.18 @ 19:22:16 End 2025.03.18 @ 19:55:58 Sessions 1 Manual Loads 0 Difficulty Rogue Special Mode None Game No. 25 Rogue 25 Adventurer 0 Explorer 0 Win Type - Total 0 Types 0/0/0/0/0/0/0/0/0 Lore% 7 Gallery% 15 Achievement% 14 Wizard Run 0 Options --------- Layout 0 ASCII 0 Keyboard 1 Movement Vi Keybinds 0 Fullscreen 2 Font 24/Tamsyn Map View 76x50 Zoom Use 0% Tactical HUD 1 Map Filters NONE Filters NONE Steam 1 RUN: 45c64a29-722a-4b89-947c-28a70a1326f4